[Event "44th Chess Olympiad Women 2022"]
[Site "Chennai"]
[Date "2022.08.09"]
[Round "11.31"]
[White "Tuominen, Tanja"]
[Black "Junior, Ednasia"]
[Result "1/2-1/2"]
[ECO "B22"]
[WhiteElo "2080"]
[BlackElo "1849"]
[Annotator "NA RC"]
[PlyCount "91"]
[EventDate "2022.07.29"]
[EventType "team-tourn"]
[EventCountry "IND"]
[SourceTitle "playchess.com"]
[Source "ChessBase"]
[SourceQuality "1"]
[WhiteTeam "Finland"]
[BlackTeam "Angola"]
[WhiteTeamCountry "FIN"]
[BlackTeamCountry "ANG"]
[TimeControl "40/5400+30:1800+30"]

1. e4 {[%emt 0:00:03]} c5 {[%emt 0:00:05]} 2. c3 {[%emt 0:00:05]} d6 {[%emt 0:00:19]} 3. d4 {[%emt 0:00:06]} cxd4 {[%emt 0:00:51]} 4. cxd4 {[%emt 0:00:05]} g6 {[%emt 0:00:16]} 5. Nc3 {[%emt 0:01:07]} Bg7 {[%emt 0:00:09]} 6. Nf3 {[%emt 0:00:14]} Nf6 {[%emt 0:01:37]} 7. Bc4 {[%emt 0:04:32]} O-O {[%emt 0:03:44]} 8. O-O {[%emt 0:00:06]} a6 {[%emt 0:01:14]} 9. a4 {[%emt 0:05:37]} Nc6 {[%emt 0:03:11]} 10. h3 {[%emt 0:05:50]} b6 {[%emt 0:11:48]} 11. Be3 {[%emt 0:06:41]} e6 {[%emt 0:05:35]} 12. Bg5 {[%emt 0:19:24]} h6 {[%emt 0:05:47]} 13. Bh4 {[%emt 0:02:48]} g5 {[%emt 0:02:08]} 14. Bg3 {[%emt 0:00:05]} Nh5 {[%emt 0:00:59]} 15. Bh2 {[%emt 0:01:24]} Nf4 {[%emt 0:02:25]} 16. Bxf4 {[%emt 0:09:12]} gxf4 {[%emt 0:00:11]} 17. Ne2 {[%emt 0:00:21]} Qf6 {[%emt 0:03:32]} 18. Qc1 {[%emt 0:03:25]} Bb7 {[%emt 0:07:40]} 19. Ba2 {[%emt 0:08:21]} Rac8 {[%emt 0:13:08]} 20. Qd2 {[%emt 0:00:14]} e5 {[%emt 0:03:37]} 21. Rfe1 {[%emt 0:00:45]} a5 {[%emt 0:05:42]} 22. Bb1 {[%emt 0:05:41]} Kh8 {[%emt 0:03:41]} 23. Ra3 {[%emt 0:02:38]} exd4 {[%emt 0:08:34]} 24. Qxf4 {[%emt 0:09:14]} Qxf4 {[%emt 0:04:36]} 25. Nxf4 {[%emt 0:00:06]} Ne5 {[%emt 0:01:50]} 26. Nh5 {[%emt 0:01:39]} Rc4 {[%emt 0:03:14]} 27. Nxg7 {[%emt 0:01:54]} Nxf3+ {[%emt 0:02:37]} 28. Rxf3 {[%emt 0:00:42]} Kxg7 {[%emt 0:00:02]} 29. b3 {[%emt 0:00:41]} Rc3 {[%emt 0:01:24]} 30. Rd3 {[%emt 0:03:30]} Rxd3 {[%emt 0:00:27]} 31. Bxd3 {[%emt 0:00:04]} Rc8 {[%emt 0:00:32]} 32. Bc4 {[%emt 0:02:50]} Re8 {[%emt 0:01:00]} 33. Kf1 {[%emt 0:00:09]} Rxe4 {[%emt 0:01:33]} 34. Rd1 {[%emt 0:01:34]} Kf6 {[%emt 0:01:40]} 35. Be2 {[%emt 0:01:36]} Ke5 {[%emt 0:01:32]} 36. Bd3 {[%emt 0:02:00]} Rf4 {[%emt 0:00:40]} 37. Re1+ {[%emt 0:01:40]} Kf6 {[%emt 0:00:28]} 38. Re8 {[%emt 0:00:37]} Bd5 {[%emt 0:00:54]} 39. Rb8 {[%emt 0:00:49]} Bxb3 {[%emt 0:00:26]} 40. Rxb6 {[%emt 0:00:14]} Bxa4 {[%emt 0:08:27]} 41. g3 {[%emt 0:15:26]} Rf3 {[%emt 0:00:00]} 42. Ke2 {[%emt 0:00:43]} Bd1+ {[%emt 0:00:00]} 43. Kd2 {[%emt 0:00:35]} Ba4 {[%emt 0:02:50]} 44. Ke2 {[%emt 0:08:30]} Bd1+ {[%emt 0:02:07]} 45. Kd2 {[%emt 0:00:13]} Ba4 {[%emt 0:00:41]} 46. Ke2 {[%emt 0:03:43]} 1/2-1/2

[Event "44th Chess Olympiad Women 2022"]
[Site "Chennai"]
[Date "2022.08.09"]
[Round "11.31"]
[White "Caxita, Esperanca"]
[Black "Nazarova, Anastasia"]
[Result "0-1"]
[ECO "B13"]
[WhiteElo "1955"]
[BlackElo "2208"]
[Annotator "RC"]
[PlyCount "76"]
[EventDate "2022.07.29"]
[EventType "team-tourn"]
[EventCountry "IND"]
[SourceTitle "playchess.com"]
[Source "ChessBase"]
[SourceQuality "1"]
[WhiteTeam "Angola"]
[BlackTeam "Finland"]
[WhiteTeamCountry "ANG"]
[BlackTeamCountry "FIN"]
[TimeControl "40/5400+30:1800+30"]

1. e4 {[%emt 0:00:03]} c6 {[%emt 0:00:04]} 2. d4 {[%emt 0:00:16]} d5 {[%emt 0:00:06]} 3. exd5 {[%emt 0:00:25]} cxd5 {[%emt 0:00:04]} 4. Bd3 {[%emt 0:00:07]} Nc6 {[%emt 0:00:05]} 5. c3 {[%emt 0:00:11]} Nf6 {[%emt 0:00:15]} 6. Nf3 {[%emt 0:00:17]} Bg4 {[%emt 0:01:18]} 7. Nbd2 {[%emt 0:02:53]} e6 {[%emt 0:00:06]} 8. Nf1 {[%emt 0:01:29]} Bd6 {[%emt 0:07:32]} 9. Bg5 {[%emt 0:01:11]} h6 {[%emt 0:17:34]} 10. Bh4 {[%emt 0:00:56]} g5 {[%emt 0:12:12]} 11. Bg3 {[%emt 0:05:26]} Ne4 {[%emt 0:00:09]} 12. Ne3 {[%emt 0:04:48]} Bh5 {[%emt 0:00:46]} 13. Qb3 {[%emt 0:02:03]} Rb8 {[%emt 0:08:57]} 14. Bxe4 {[%emt 0:03:36]} dxe4 {[%emt 0:00:12]} 15. Nd2 {[%emt 0:00:07]} Bg6 {[%emt 0:00:45]} 16. Bxd6 {[%emt 0:02:58]} Qxd6 {[%emt 0:00:06]} 17. Ndc4 {[%emt 0:00:13]} Qd8 {[%emt 0:02:03]} 18. a4 {[%emt 0:01:19]} O-O {[%emt 0:02:24]} 19. O-O-O {[%emt 0:12:35]} Na5 {[%emt 0:11:45]} 20. Nxa5 {[%emt 0:02:15]} Qxa5 {[%emt 0:00:09]} 21. Nc4 {[%emt 0:00:36]} Qd5 {[%emt 0:01:58]} 22. Qb5 {[%emt 0:03:19]} Rfd8 {[%emt 0:05:51]} 23. Ne5 {[%emt 0:02:50]} Bh7 {[%emt 0:01:38]} 24. h4 {[%emt 0:01:32]} Qa2 {[%emt 0:15:04]} 25. Nd7 {[%emt 0:05:29]} Rxd7 {[%emt 0:01:45]} 26. Qxd7 {[%emt 0:00:26]} e3 {[%emt 0:00:23]} 27. fxe3 {[%emt 0:05:16]} Qb1+ {[%emt 0:00:04]} 28. Kd2 {[%emt 0:00:36]} Qd3+ {[%emt 0:00:03]} 29. Ke1 {[%emt 0:02:30]} Qxe3+ {[%emt 0:00:08]} 30. Kf1 {[%emt 0:04:32]} Bd3+ {[%emt 0:00:06]} 31. Rxd3 {[%emt 0:00:27]} Qxd3+ {[%emt 0:00:03]} 32. Kf2 {[%emt 0:02:32]} Qd2+ {[%emt 0:00:33]} 33. Kf3 {[%emt 0:05:10]} g4+ {[%emt 0:00:31]} 34. Kg3 {[%emt 0:02:16]} Qe3+ {[%emt 0:00:59]} 35. Kxg4 {[%emt 0:24:09]} h5+ {[%emt 0:00:13]} 36. Kxh5 {[%emt 0:01:38]} Qg3 {[%emt 0:00:13]} 37. Qxf7+ {[%emt 0:01:55]} Kxf7 {[%emt 0:00:08]} 38. Rf1+ {[%emt 0:00:13]} Kg7 {[%emt 0:00:12]} 0-1

[Event "44th Chess Olympiad Women 2022"]
[Site "Chennai"]
[Date "2022.08.09"]
[Round "11.31"]
[White "Norlamo, Sarabella"]
[Black "Paulo, Jemima"]
[Result "1/2-1/2"]
[ECO "E73"]
[WhiteElo "1925"]
[BlackElo "1850"]
[Annotator "TA"]
[PlyCount "80"]
[EventDate "2022.07.29"]
[EventType "team-tourn"]
[EventCountry "IND"]
[SourceTitle "playchess.com"]
[Source "ChessBase"]
[SourceQuality "1"]
[WhiteTeam "Finland"]
[BlackTeam "Angola"]
[WhiteTeamCountry "FIN"]
[BlackTeamCountry "ANG"]
[TimeControl "40/5400+30:1800+30"]

{[%evp 14,80,54,62,56,46,54,54,48,47,47,48,74,72,73,68,83,78,89,60,60,0,34,31,30,35,108,91,148,141,141,140,171,124,139,116,126,91,156,144,171,171,185,177,177,135,146,0,0,0,0,0,0,0,0,0,0,0,0,0,0,0,0,0,0,0,0,0,0]} 1. d4 {[%emt 0:00:03]} Nf6 {[%emt 0:00:28]} 2. c4 {[%emt 0:00:04]} g6 {[%emt 0:00:17]} 3. Nc3 {[%emt 0:00:04]} Bg7 {[%emt 0:00:29]} 4. e4 {[%emt 0:00:05]} d6 {[%emt 0:00:10]} 5. Be2 {[%emt 0:00:06]} O-O {[%emt 0:00:09]} 6. Be3 {[%emt 0:00:05]} e5 {[%emt 0:00:08]} 7. d5 {[%emt 0:00:09]} Nbd7 {[%emt 0:01:26]} 8. g4 {[%emt 0:01:59][%cal Bg2g4,Bg4g5][%mdl 32]} Nc5 {[%emt 0:00:55] E73: King's Indian: Averbakh Variation without 6...c5.} 9. f3 {[%emt 0:00:19]} a5 {[%emt 0:00:15] 9...h5 is more fashionable.} 10. h4 {[%emt 0:01:13]} h5 {[%emt 0:00:44] White is slightly better.} 11. g5 {[%emt 0:00:32]} Nfd7 {[%emt 0:02:11]} 12. Nh3 {[%emt 0:07:04]} Nb6 {[%emt 0:00:28]} 13. Qd2 {[%emt 0:07:16]} Bxh3 {[%emt 0:05:06]} 14. Rxh3 {[%emt 0:00:06] [#]} Nbd7 $146 {[%emt 0:00:32]} ({Predecessor:} 14... Qd7 15. Rg3 Nba4 16. Nb5 c6 17. Nc3 Nxc3 18. Qxc3 cxd5 19. cxd5 Rfc8 20. Qd2 Qa4 {1-0 (41) Ganguly,S (2635)-Mohammad Fahad,R (2319) Chess.com INT 2020}) 15. b3 {[%emt 0:27:08]} Na6 {[%emt 0:02:58]} 16. Na4 {[%emt 0:04:04]} Ndc5 {[%emt 0:01:47]} 17. Qxa5 {[%emt 0:07:27]} (17. Nxc5 $14 Nxc5 18. O-O-O) 17... Qd7 {[%emt 0:00:09]} 18. Rh2 {[%emt 0:06:44]} Nxa4 {[%emt 0:00:16]} 19. Qxa4 {[%emt 0:01:03]} c6 {[%emt 0:02:19]} (19... Qxa4 $14 20. bxa4 Nb4) 20. Qa5 $16 {[%emt 0:05:18]} Rfc8 {[%emt 0:01:22]} (20... Nc5 $142 21. Qb4 f6) 21. Qd2 {[%emt 0:03:03] White is more active.} Qc7 {[%emt 0:01:29]} 22. Rd1 {[%emt 0:06:33]} c5 {[%emt 0:02:42]} 23. Bd3 {[%emt 0:01:32]} (23. Bf1 $18) 23... Nb4 {[%emt 0:00:41]} 24. Bb1 {[%emt 0:00:46]} Rf8 {[%emt 0:01:13]} 25. Qg2 {[%emt 0:03:48]} Qe7 {[%emt 0:06:21]} (25... b5 $142) 26. Kf1 {[%emt 0:02:48]} f6 {[%emt 0:00:25]} 27. Kg1 {[%emt 0:02:13]} Rf7 {[%emt 0:02:11]} 28. Rf1 {[%emt 0:01:06]} fxg5 {[%emt 0:00:31]} 29. hxg5 {[%emt 0:03:04]} Qd7 {[%emt 0:07:26]} 30. Qh3 {[%emt 0:00:34]} (30. Qe2 $16) 30... Qxh3 $11 {[%emt 0:00:09] The position is equal.} 31. Rxh3 {[%emt 0:00:01]} Nxa2 {[%emt 0:00:11]} 32. Bxa2 {[%emt 0:03:48]} Rxa2 {[%emt 0:00:17]} 33. Rh2 {[%emt 0:00:31] Inhibits Rb2.} Ra3 {[%emt 0:00:12]} 34. Rb2 {[%emt 0:00:15]} b5 {[%emt 0:02:27]} 35. cxb5 {[%emt 0:03:09]} Rb7 {[%emt 0:00:08]} 36. Rfb1 {[%emt 0:01:53]} Rxb5 {[%emt 0:00:08] aiming for ...c4.} 37. Kf2 {[%emt 0:00:38]} Bf8 {[%emt 0:01:44]} 38. Bd2 {[%emt 0:00:39]} Be7 {[%emt 0:05:13]} 39. Ke2 {[%emt 0:00:07]} Kf7 {[%emt 0:04:38]} 40. Kd3 {[%emt 0:01:45]} Rb8 {[%emt 0:00:33] Black defended with fortune.  Weighted Error Value: White=0.13 (very precise) /Black=0.13 (very precise)} 1/2-1/2

[Event "44th Chess Olympiad Women 2022"]
[Site "Chennai"]
[Date "2022.08.09"]
[Round "11.31"]
[White "Pires, Luzia"]
[Black "Puuska, Heini"]
[Result "1/2-1/2"]
[ECO "B13"]
[WhiteElo "1842"]
[BlackElo "2010"]
[Annotator "TA"]
[PlyCount "158"]
[EventDate "2022.07.29"]
[EventType "team-tourn"]
[EventCountry "IND"]
[SourceTitle "playchess.com"]
[Source "ChessBase"]
[SourceQuality "1"]
[WhiteTeam "Angola"]
[BlackTeam "Finland"]
[WhiteTeamCountry "ANG"]
[BlackTeamCountry "FIN"]
[TimeControl "40/5400+30:1800+30"]

{[%evp 9,158,-11,-8,-17,-6,-18,-19,-18,-12,-37,-14,-20,-16,-14,-15,-27,-29,-33,-29,-25,-25,-23,-28,-31,-31,-54,-19,-19,-18,-27,0,-18,0,0,0,0,7,-1,73,67,265,264,262,254,243,223,228,225,252,250,269,148,236,237,213,197,183,185,234,216,214,211,199,168,373,361,307,327,423,149,153,153,152,63,58,41,60,55,80,73,75,87,183,187,193,198,231,126,115,70,283,279,305,305,302,282,306,268,311,232,281,291,367,160,163,164,747,747,835,8,8,8,8,8,8,8,8,8,8,0,0,0,0,0,0,0,0,0,0,0,0,0,0,0,0,0,0,0,0,0,0,0,0,0,0,0,0,0,0,0,0]} 1. d4 {[%emt 0:00:38]} d5 {[%emt 0:00:09]} 2. Nf3 {[%emt 0:00:28]} c5 {[%emt 0:00:19]} 3. e3 {[%emt 0:04:24]} cxd4 {[%emt 0:00:39]} 4. exd4 {[%emt 0:00:32]} Nc6 {[%emt 0:00:57]} 5. a3 {[%emt 0:00:38]} Bg4 {[%emt 0:01:16]} 6. Be2 {[%emt 0:00:26] B13: Caro-Kann: Exchange Variation and Panov-Botvinnik Attack.} e6 {[%emt 0:01:09]} 7. O-O {[%emt 0:00:15]} Bd6 {[%emt 0:01:26] [#]} 8. Nbd2 $146 {[%emt 0:00:13]} ({Predecessor:} 8. c3 Qc7 9. Nbd2 Nf6 10. Re1 O-O 11. h3 Bf5 12. Nf1 h6 13. Ne3 Be4 14. Bd3 {½-½ (48) Socko,M (2440)-Peng,Z (2459) Germany 1999}) 8... Nge7 {[%emt 0:01:17]} 9. b3 {[%emt 0:00:24]} O-O {[%emt 0:01:49]} 10. Bb2 {[%emt 0:00:21]} Rc8 {[%emt 0:01:41]} 11. h3 {[%emt 0:01:14]} Bh5 {[%emt 0:03:53]} 12. Nh4 {[%emt 0:19:10]} Bxe2 {[%emt 0:01:02]} 13. Qxe2 {[%emt 0:00:02]} Bb8 {[%emt 0:02:28]} 14. Rfd1 {[%emt 0:02:50]} Qc7 {[%emt 0:02:23]} 15. Nf1 {[%emt 0:00:41] Against Qh2+} Rfd8 {[%emt 0:10:25]} 16. Rac1 {[%emt 0:02:48]} a6 {[%emt 0:01:34]} 17. c4 {[%emt 0:01:29]} Qf4 {[%emt 0:05:42]} 18. Nf3 {[%emt 0:02:06]} Nf5 {[%emt 0:05:39]} 19. g3 {[%emt 0:06:53]} Qh6 {[%emt 0:01:53]} 20. Kg2 {[%emt 0:01:41]} Na5 {[%emt 0:07:41]} 21. Rc3 {[%emt 0:02:46]} dxc4 {[%emt 0:03:48]} 22. bxc4 {[%emt 0:00:31]} Ba7 {[%emt 0:02:18]} 23. d5 {[%emt 0:06:38]} exd5 {[%emt 0:02:27]} (23... Nd6 $11) 24. cxd5 $16 {[%emt 0:00:16]} Rxc3 $2 {[%emt 0:01:58]} (24... Nd6 $14) 25. Bxc3 $18 {[%emt 0:00:02]} Bb6 {[%emt 0:05:05]} 26. Re1 {[%emt 0:13:29][%cal Oe2e8]} Nd6 {[%emt 0:02:42] Inhibits Qe8+.} 27. N1d2 {[%emt 0:01:04][%cal Bf1d2,Bd2e4,Be4g5][%mdl 32] Prevents Nac4. Strongly threatening Qe7.} Qh5 {[%emt 0:05:40]} 28. Qd3 {[%emt 0:00:30]} Qf5 {[%emt 0:04:20]} 29. Ne4 $1 {[%emt 0:02:35]} Nac4 {[%emt 0:03:11][%cal Oc4e3]} 30. Nh4 {[%emt 0:00:29]} ({Only move:} 30. g4 $18 Qd7 31. Nfg5 (31. Neg5 g6 $16) (31. Nxd6 Nxd6 32. Ng5 g6 $18)) 30... Qc8 {[%emt 0:01:45]} (30... Qh5 $2 31. Bf6 $1 Ne5 32. Qb3 Bxf2 33. g4 (33. Bxd8 Bxe1 34. g4 Nxg4 $11) 33... Nxg4 34. hxg4 (34. Bxd8 Bxe1 35. Nxd6 Bxh4 $11) 34... Qxg4+ 35. Kxf2 $18) (30... Qd7 $16) 31. Ng5 {[%emt 0:01:29]} g6 {[%emt 0:00:59]} 32. Ba1 {[%emt 0:06:21] Qf3 is the strong threat.} Qc5 {[%emt 0:14:24]} 33. Qf3 {[%emt 0:10:12] And now Re2 would win.} (33. Qc3 $2 Qxf2+ 34. Kh1 Bd4 $1 {[%mdl 512]} 35. Qxd4 Qxe1+ $19) 33... Qxf2+ {[%emt 0:00:12]} (33... h6 $2 34. Re2 $1 Qxa3 35. Qf6 Qxa1 36. Qxa1 $18) (33... Nxa3 $142 34. Re2 (34. Qf6 Qxf2+ 35. Qxf2 Bxf2 $16) 34... Nc2) 34. Qxf2 {[%emt 0:00:23]} Bxf2 {[%emt 0:00:13]} 35. Kxf2 {[%emt 0:00:09]} Nxa3 {[%emt 0:00:16]} 36. Re2 {[%emt 0:05:45]} h6 $2 {[%emt 0:02:35]} (36... Nab5 {is a better defense.} 37. Ng2 a5) 37. Ne4 {[%emt 0:00:23]} Nxe4+ {[%emt 0:00:09]} 38. Rxe4 {[%emt 0:00:06] aiming for Bf6.} Kf8 {[%emt 0:00:29]} 39. Bc3 $2 {[%emt 0:00:52]} (39. Bf6 $18 {and the rest is easy.} Rd7 40. Nf3) 39... Nb5 $16 {[%emt 0:00:36]} 40. Bb4+ {[%emt 0:00:53]} Kg7 {[%emt 0:00:41]} 41. d6 {[%emt 0:34:24]} ({White should play} 41. Re7 $16) 41... b6 $14 {[%emt 0:04:44]} 42. Re5 {[%emt 0:00:00]} Nxd6 {[%emt 0:02:09]} 43. Nf3 {[%emt 0:00:00]} Nb5 {[%emt 0:03:06]} 44. Re7 {[%emt 0:00:00]} a5 {[%emt 0:02:26]} 45. Bd2 {[%emt 0:00:00]} Kf6 {[%emt 0:01:18]} (45... Nd6 $16) 46. Rb7 $18 {[%emt 0:00:00]} Rd6 {[%emt 0:01:00]} 47. Bxh6 {[%emt 0:00:00]} a4 {[%emt 0:01:36]} 48. Bg5+ {[%emt 0:00:00]} (48. Bf4 $18 Rc6 49. Ne5) 48... Ke6 $16 {[%emt 0:02:16]} 49. Rb8 {[%emt 0:00:00]} Nc3 $2 {[%emt 0:02:01] [#]} (49... Rc6 $14) 50. Bf4 $1 $18 {[%emt 0:00:00]} Rd1 {[%emt 0:02:17]} 51. Rxb6+ {[%emt 0:00:00]} Kd5 {[%emt 0:00:39]} 52. Be5 {[%emt 0:00:00]} Ne4+ {[%emt 0:05:23]} 53. Ke2 {[%emt 0:00:00]} Rc1 {[%emt 0:01:38]} 54. Rb5+ {[%emt 0:03:58]} Kc4 {[%emt 0:03:56]} 55. Rb7 {[%emt 0:00:02]} a3 {[%emt 0:02:12]} 56. Nd2+ {[%emt 0:01:09]} (56. Rxf7 $18 {is more deadly.} Kb5 57. Ra7) 56... Kd5 $16 {[%emt 0:00:45]} 57. Rb5+ {[%emt 0:04:04]} Nc5 $2 {[%emt 0:01:37] [#]} (57... Rc5 58. Rxc5+ Nxc5) 58. Nb3 $1 $18 {[%emt 0:02:00]} Rc4 {[%emt 0:01:35]} (58... Rc2+ 59. Kd1) 59. Rxc5+ $2 {[%emt 0:00:19]} (59. Bg7 $18 Rc2+ 60. Ke3) 59... Rxc5 $11 {[%emt 0:00:08] The position is equal.} 60. Nxc5 {[%emt 0:00:11]} Kxe5 $18 {[%emt 0:00:49][%mdl 4096] Endgame KN-K3P} 61. Nb3 {[%emt 0:01:10]} Ke4 {[%emt 0:00:43]} 62. Na1 {[%emt 0:00:52]} g5 {[%emt 0:00:46]} 63. Kf2 {[%emt 0:01:03]} f5 {[%emt 0:00:21]} 64. Nb3 {[%emt 0:00:29]} a2 {[%emt 0:00:47]} 65. Na1 {[%emt 0:00:28]} Kd3 {[%emt 0:00:58]} 66. h4 {[%emt 0:00:33]} gxh4 {[%emt 0:00:26]} 67. gxh4 $11 {[%emt 0:00:09] KN-KPP} Kc3 {[%emt 0:00:22] ( -> ...Kb2)} 68. h5 {[%emt 0:00:57] White wants to mate with Ke1.} Kb2 {[%emt 0:00:02]} 69. h6 {[%emt 0:00:12] Threatening mate with h7.} Kxa1 {[%emt 0:00:08] KPP-KP} 70. h7 {[%emt 0:00:38]} Kb1 {[%emt 0:00:11]} 71. h8=Q {[%emt 0:00:21] Qb8+ would kill now.} a1=Q {[%emt 0:00:15] KQ-KQ} 72. Qh1+ {[%emt 0:00:49]} Ka2 {[%emt 0:00:29]} 73. Qd5+ {[%emt 0:00:19]} Kb2 {[%emt 0:01:36]} 74. Qb5+ {[%emt 0:00:24]} Kc2 {[%emt 0:01:02]} 75. Qxf5+ {[%emt 0:00:14]} Kb3 {[%emt 0:00:21]} 76. Qb5+ {[%emt 0:00:20]} Kc2 {[%emt 0:00:28]} 77. Qe2+ {[%emt 0:00:55]} Kb3 {[%emt 0:00:30]} 78. Qb5+ {[%emt 0:00:30]} Kc2 {[%emt 0:00:17]} 79. Qc4+ {[%emt 0:00:17]} Qc3 {[%emt 0:00:28] Black escapes into a draw.  Weighted Error Value: White=0.34/Black=0.34} 1/2-1/2

[Event "44th Chess Olympiad Women 2022"]
[Site "Chennai"]
[Date "2022.08.09"]
[Round "11.32"]
[White "Guindy, Esmat Susanne"]
[Black "Shaba, Linda Dalitso"]
[Result "1-0"]
[ECO "A96"]
[WhiteElo "2097"]
[BlackElo "1658"]
[Annotator "NA RC"]
[PlyCount "130"]
[EventDate "2022.07.29"]
[EventType "team-tourn"]
[EventCountry "IND"]
[SourceTitle "playchess.com"]
[Source "ChessBase"]
[SourceQuality "1"]
[WhiteTeam "Denmark"]
[BlackTeam "Zimbabwe"]
[WhiteTeamCountry "DEN"]
[BlackTeamCountry "ZIM"]
[TimeControl "40/5400+30:1800+30"]

1. d4 {[%emt 0:00:03]} e6 {[%emt 0:00:07]} 2. c4 {[%emt 0:00:18]} f5 {[%emt 0:00:06]} 3. g3 {[%emt 0:00:07]} Nf6 {[%emt 0:00:09]} 4. Bg2 {[%emt 0:00:10]} Be7 {[%emt 0:00:13]} 5. Nf3 {[%emt 0:00:43]} O-O {[%emt 0:00:28]} 6. O-O {[%emt 0:00:14]} d6 {[%emt 0:01:35]} 7. b3 {[%emt 0:06:06]} Nc6 {[%emt 0:06:54]} 8. Bb2 {[%emt 0:02:55]} Qe8 {[%emt 0:02:44]} 9. d5 {[%emt 0:06:29]} exd5 {[%emt 0:01:32]} 10. cxd5 {[%emt 0:00:07]} Nb4 {[%emt 0:03:48]} 11. Nc3 {[%emt 0:00:48]} Qf7 {[%emt 0:02:16]} 12. Nd4 {[%emt 0:06:52]} Nfxd5 {[%emt 0:07:30]} 13. Nxd5 {[%emt 0:02:14]} Nxd5 {[%emt 0:00:12]} 14. Nxf5 {[%emt 0:01:49]} Qxf5 {[%emt 0:02:11]} 15. Qxd5+ {[%emt 0:06:46]} Qxd5 {[%emt 0:00:40]} 16. Bxd5+ {[%emt 0:00:07]} Kh8 {[%emt 0:00:04]} 17. Bg2 {[%emt 0:02:23]} Bf6 {[%emt 0:09:50]} 18. Rab1 {[%emt 0:01:39]} c6 {[%emt 0:00:43]} 19. e4 {[%emt 0:00:26]} Be6 {[%emt 0:01:28]} 20. Rfd1 {[%emt 0:00:54]} Rad8 {[%emt 0:00:40]} 21. Bxf6 {[%emt 0:06:40]} gxf6 {[%emt 0:02:32]} 22. Rb2 {[%emt 0:01:02]} f5 {[%emt 0:06:03]} 23. Rbd2 {[%emt 0:02:27]} fxe4 {[%emt 0:01:00]} 24. Rxd6 {[%emt 0:00:21]} Rxd6 {[%emt 0:09:34]} 25. Rxd6 {[%emt 0:00:07]} Bf5 {[%emt 0:01:11]} 26. h3 {[%emt 0:02:01]} Rf7 {[%emt 0:06:45]} 27. g4 {[%emt 0:01:36]} Bg6 {[%emt 0:02:07]} 28. Re6 {[%emt 0:02:50]} Rd7 {[%emt 0:01:06]} 29. Bxe4 {[%emt 0:00:43]} Bf7 {[%emt 0:03:09]} 30. Re5 {[%emt 0:02:02]} Kg7 {[%emt 0:01:31]} 31. g5 {[%emt 0:05:05]} Bg6 {[%emt 0:09:44]} 32. h4 {[%emt 0:02:53]} Rd4 {[%emt 0:03:24]} 33. Bxg6 {[%emt 0:01:03]} Kxg6 {[%emt 0:00:20]} 34. Re6+ {[%emt 0:07:55]} Kf7 {[%emt 0:00:44]} 35. Rh6 {[%emt 0:00:13]} Kg7 {[%emt 0:00:20]} 36. Kg2 {[%emt 0:01:53]} Rd2 {[%emt 0:00:17]} 37. Re6 {[%emt 0:01:08]} Kf7 {[%emt 0:00:35]} 38. Rf6+ {[%emt 0:00:14]} Kg7 {[%emt 0:00:16]} 39. a4 {[%emt 0:00:18]} Rd4 {[%emt 0:01:07]} 40. Kg3 {[%emt 0:00:38]} Rb4 {[%emt 0:01:00]} 41. Rf3 {[%emt 0:30:08]} Kg6 {[%emt 0:30:50]} 42. Rd3 {[%emt 0:01:50]} Kf5 {[%emt 0:03:21]} 43. f3 {[%emt 0:04:55]} Kg6 {[%emt 0:02:07]} 44. f4 {[%emt 0:02:57]} Kf5 {[%emt 0:09:21]} 45. Rf3 {[%emt 0:00:30]} Rb6 {[%emt 0:00:00]} 46. Rc3 {[%emt 0:00:00]} Rb4 {[%emt 0:00:00]} 47. h5 {[%emt 0:00:00]} b6 {[%emt 0:00:00]} 48. Rxc6 {[%emt 0:00:00]} Rxb3+ {[%emt 0:00:00]} 49. Kh4 {[%emt 0:00:00]} Kxf4 {[%emt 0:00:00]} 50. g6 {[%emt 0:00:00]} hxg6 {[%emt 0:00:00]} 51. hxg6 {[%emt 0:00:00]} Rb1 {[%emt 0:00:00]} 52. Rf6+ {[%emt 0:00:00]} Ke5 {[%emt 0:00:00]} 53. Rf7 {[%emt 0:00:00]} Rg1 {[%emt 0:00:00]} 54. Kh5 {[%emt 0:00:00]} Rh1+ {[%emt 0:00:00]} 55. Kg5 {[%emt 0:00:00]} a6 {[%emt 0:00:00]} 56. Rf5+ {[%emt 0:00:00]} Kd6 {[%emt 0:00:00]} 57. Kf6 {[%emt 0:00:00]} Rg1 {[%emt 0:00:00]} 58. g7 {[%emt 0:00:00]} Rxg7 {[%emt 0:00:00]} 59. Kxg7 {[%emt 0:00:00]} Kc6 {[%emt 0:00:00]} 60. Kf6 {[%emt 0:00:00]} b5 {[%emt 0:00:00]} 61. axb5+ {[%emt 0:00:00]} axb5 {[%emt 0:00:00]} 62. Ke5 {[%emt 0:00:00]} Kc5 {[%emt 0:00:00]} 63. Rf8 {[%emt 0:00:00]} Kc4 {[%emt 0:00:00]} 64. Ke4 {[%emt 0:00:00]} Kc3 {[%emt 0:00:00]} 65. Rc8+ {[%emt 0:00:00]} Kb3 {[%emt 0:00:00]} 1-0